fUSD/lending_fUSD_20250223
["ID","MTS","AMOUNT","RATE_DAILY","PERIOD"]
[354225393,1740353446390,-1355.79,0.00016438,2]
[354225394,1740353446399,-326.80659595,0.00016438,2]
[354225395,1740353446408,-3419.84,0.00016438,2]
[354225396,1740353446418,-500.0,0.00016438,2]
[354225398,1740353446427,-500.0,0.00016438,2]
[354225400,1740353446436,-500.0,0.00016438,2]
[354225402,1740353446446,-500.0,0.00016438,2]
[354225404,1740353446455,-500.0,0.00016438,2]
[354225406,1740353446465,-500.0,0.00016438,2]
[354225408,1740353446474,-903.44,0.00016438,2]
[354225410,1740353446484,-789.8,0.00016438,2]
[354225412,1740353446492,-500.0,0.00016438,2]
[354225414,1740353446502,-500.0,0.00016438,2]
[354225416,1740353446511,-930.11,0.00016438,2]
[354225418,1740353446522,-502.89002966,0.00016438,2]
[354225420,1740353446531,-3374.28,0.00016438,2]
[354225422,1740353446541,-1361.46,0.00016438,2]
[354225424,1740353446550,-271.93482076,0.00016438,2]
[354225426,1740353446559,-500.0,0.00016438,2]
[354225428,1740353446568,-500.0,0.00016438,2]
[354225430,1740353446577,-500.0,0.00016438,2]
[354225432,1740353446587,-500.0,0.00016438,2]
[354225434,1740353446596,-861.81,0.00016438,2]
[354225436,1740353446605,-200.82135699,0.00016438,2]
[354225438,1740353446614,-1538.75,0.00016438,2]
[354225440,1740353446624,-500.0,0.00016438,2]
[354225442,1740353446633,-500.0,0.00016438,2]
[354225444,1740353446644,-2228.34,0.00016438,2]
[354225446,1740353446653,-503.79034222,0.00016438,2]
[354225448,1740353446663,-500.0,0.00016438,2]
[354225450,1740353446672,-1332.93,0.00016438,2]
[354225452,1740353446681,-213.49435158,0.00016438,2]
[354225454,1740353446691,-500.0,0.00016438,2]
[354225456,1740353446700,-502.5058485,0.00016438,2]
[354225458,1740353446710,-1249.71,0.00016438,2]
[354225460,1740353446719,-500.0,0.00016438,2]
[354225462,1740353446728,-500.0,0.00016438,2]
[354225464,1740353446738,-481.13485957,0.00016438,2]
[354225466,1740353446747,-500.0,0.00016438,2]
[354225468,1740353446756,-501.74509218,0.00016438,2]
[354225470,1740353446765,-3444.02,0.00016438,2]
[354225472,1740353446777,-500.0,0.00016438,2]
[354225474,1740353446786,-498.30835359,0.00016438,2]
[354225476,1740353446795,-500.0,0.00016438,2]
[354225478,1740353446805,-500.0,0.00016438,2]
[354225480,1740353446814,-793.58,0.00016438,2]
[354225482,1740353446823,-4982.05,0.00016438,2]
[354225484,1740353446833,-4534.88,0.00016438,2]
[354225486,1740353446842,-500.0,0.00016438,2]
[354225488,1740353446851,-500.0,0.00016438,2]
[354225490,1740353446860,-500.0,0.00016438,2]
[354225492,1740353446869,-996.8,0.00016438,2]
[354225494,1740353446878,-1506.19,0.00016438,2]
[354225496,1740353446888,-500.0,0.00016438,2]
[354225497,1740353446896,-500.0,0.00016438,2]
[354225498,1740353446905,-500.0,0.00016438,2]
[354225499,1740353446915,-500.0,0.00016438,2]
[354225500,1740353446924,-600.87218215,0.00016438,2]
[354225501,1740353446934,-500.0,0.00016438,2]
[354225503,1740353446943,-501.47082259,0.00016438,2]
[354225505,1740353446952,-500.0,0.00016438,2]
[354225507,1740353446962,-676.59,0.00016438,2]
[354225509,1740353446973,-1565.13,0.00016438,2]
[354225511,1740353446983,-502.18934387,0.00016438,2]
[354225513,1740353446997,-500.0,0.00016438,2]
[354225515,1740353447006,-3940.44,0.00016438,2]
[354225517,1740353447015,-1729.64,0.00016438,2]
[354225519,1740353447025,-500.0,0.00016438,2]
[354225520,1740353447036,-2061.82,0.00016438,2]
[354225522,1740353447045,-500.0,0.00016438,2]
[354225524,1740353447056,-914.7,0.00016438,2]
[354225525,1740353447065,-500.0,0.00016438,2]
[354225526,1740353447075,-500.0,0.00016438,2]
[354225527,1740353447084,-1510.76,0.00016438,2]
[354225528,1740353447094,-500.0,0.00016438,2]
[354225529,1740353447103,-1515.73,0.00016438,2]
[354225530,1740353447113,-500.0,0.00016438,2]
[354225531,1740353447124,-501.6612993,0.00016438,2]
[354225532,1740353447134,-500.0,0.00016438,2]
[354225533,1740353447143,-1772.15,0.00016438,2]
[354225534,1740353447153,-459.98924144,0.00016438,2]
[354225535,1740353447162,-500.0,0.00016438,2]
[354225536,1740353447172,-519.51692336,0.00016438,2]
[354225537,1740353447181,-1327.26,0.00016438,2]
[354225538,1740353447191,-500.0,0.00016438,2]
[354225539,1740353447201,-500.0,0.00016438,2]
[354225540,1740353447210,-500.0,0.00016438,2]
[354225541,1740353447219,-500.0,0.00016438,2]
[354225542,1740353447228,-500.0,0.00016438,2]
[354225543,1740353447238,-500.0,0.00016438,2]
[354225544,1740353447248,-500.0,0.00016438,2]
[354225545,1740353447258,-8381.48,0.00016438,2]
[354225546,1740353447267,-500.0,0.00016438,2]
[354225547,1740353447277,-2177.57,0.00016438,2]
[354225548,1740353447286,-988.11,0.00016438,2]
[354225549,1740353447296,-500.0,0.00016438,2]
[354225550,1740353447305,-500.0,0.00016438,2]
[354225551,1740353447315,-500.0,0.00016438,2]
[354225552,1740353447324,-3529.02,0.00016438,2]
[354225553,1740353447334,-1863.94,0.00016438,2]
[354225554,1740353447343,-502.00591203,0.00016438,2]
[354225555,1740353447353,-500.0,0.00016438,2]
[354225556,1740353447363,-500.0,0.00016438,2]
[354225557,1740353447373,-500.0,0.00016438,2]
[354225558,1740353447383,-502.29869671,0.00016438,2]
[354225559,1740353447392,-3108.77,0.00016438,2]
[354225560,1740353447401,-500.0,0.00016438,2]
[354225561,1740353447411,-500.0,0.00016438,2]
[354225562,1740353447420,-500.0,0.00016438,2]
[354225563,1740353447430,-502.0499542,0.00016438,2]
[354225564,1740353447439,-509.08,0.00016438,2]
[354225565,1740353447448,-4880.47,0.00016438,2]
[354225566,1740353447458,-500.0,0.00016438,2]
[354225567,1740353447467,-502.41173364,0.00016438,2]
[354225568,1740353447477,-500.0,0.00016438,2]
[354225569,1740353447486,-500.0,0.00016438,2]
[354225570,1740353447495,-988.44,0.00016438,2]
[354225571,1740353447505,-3416.71,0.00016438,2]
[354225572,1740353447514,-503.72863326,0.00016438,2]
[354225573,1740353447525,-1033.08,0.00016438,2]
[354225574,1740353447534,-711.6,0.00016438,2]
[354225575,1740353447543,-3794.22,0.00016438,2]
[354225576,1740353447553,-687.99,0.00016438,2]
[354225577,1740353447562,-2183.59,0.00016438,2]
[354225578,1740353447571,-500.0,0.00016438,2]
[354225579,1740353447580,-504.66141216,0.00016438,2]
[354225580,1740353447590,-666.84,0.00016438,2]
[354225581,1740353447599,-508.31523706,0.00016438,2]
[354225582,1740353447608,-500.0,0.00016438,2]
[354225583,1740353447617,-610.51608761,0.00016438,2]
[354225584,1740353447627,-1360.01,0.00016438,2]
[354225585,1740353447636,-503.7906561,0.00016438,2]
[354225586,1740353447645,-2691.73,0.00016438,2]
[354225587,1740353447655,-1516.02,0.00016438,2]
[354225588,1740353447664,-2250.19,0.00016438,2]
[354225589,1740353447673,-3043.56,0.00016438,2]
[354225590,1740353447682,-500.0,0.00016438,2]
[354225591,1740353447691,-4047.89,0.00016438,2]
[354225592,1740353447701,-503.06646742,0.00016438,2]
[354225593,1740353447710,-741.57,0.00016438,2]
[354225594,1740353447719,-500.0,0.00016438,2]
[354225595,1740353447728,-962.95,0.00016438,2]
[354225596,1740353447738,-500.0,0.00016438,2]
[354225597,1740353447747,-500.0,0.00016438,2]
[354225598,1740353447757,-500.0,0.00016438,2]
[354225599,1740353447766,-3262.59,0.00016438,2]
[354225600,1740353447777,-3135.8,0.00016438,2]
[354225601,1740353447787,-1117.59,0.00016438,2]
[354225602,1740353447796,-11350.88,0.00016438,2]
[354225603,1740353447805,-500.0,0.00016438,2]
[354225604,1740353447815,-500.0,0.00016438,2]
[354225605,1740353447824,-504.19632499,0.00016438,2]
[354225606,1740353447833,-500.0,0.00016438,2]
[354225607,1740353447843,-2070.05,0.00016438,2]
[354225608,1740353447852,-503.05963733,0.00016438,2]
[354225609,1740353447861,-500.0,0.00016438,2]
[354225610,1740353447871,-500.0,0.00016438,2]
[354225611,1740353447881,-684.7,0.00016438,2]
[354225612,1740353447891,-504.41269207,0.00016438,2]
[354225613,1740353447900,-500.0,0.00016438,2]
[354225614,1740353447909,-500.0,0.00016438,2]
[354225615,1740353447919,-2288.44,0.00016438,2]
[354225616,1740353447929,-1698.24,0.00016438,2]
[354225617,1740353447939,-500.0,0.00016438,2]
[354225618,1740353447948,-619.5,0.00016438,2]
[354225619,1740353447957,-2235.47,0.00016438,2]
[354225620,1740353447968,-500.0,0.00016438,2]
[354225621,1740353447983,-688.3,0.00016438,2]
[354225622,1740353447992,-500.0,0.00016438,2]
[354225623,1740353448001,-500.0,0.00016438,2]
[354225624,1740353448011,-854.83,0.00016438,2]
[354225625,1740353448020,-500.0,0.00016438,2]
[354225626,1740353448030,-500.0,0.00016438,2]
[354225627,1740353448039,-500.0,0.00016438,2]
[354225628,1740353448051,-1443.32,0.00016438,2]
[354225629,1740353448061,-2374.82,0.00016438,2]
[354225630,1740353448070,-500.0,0.00016438,2]
[354225631,1740353448079,-3635.87,0.00016438,2]
[354225632,1740353448089,-504.23690688,0.00016438,2]
[354225633,1740353448098,-2655.28,0.00016438,2]
[354225634,1740353448108,-501.94723504,0.00016438,2]
[354225635,1740353448117,-500.0,0.00016438,2]
[354225636,1740353448127,-2119.63,0.00016438,2]
[354225637,1740353448136,-3247.38,0.00016438,2]
[354225638,1740353448145,-503.30879013,0.00016438,2]
[354225639,1740353448155,-590.04,0.00016438,2]
[354225640,1740353448164,-509.2340643,0.00016438,2]
[354225641,1740353448173,-1084.51,0.00016438,2]
[354225642,1740353448182,-500.0,0.00016438,2]
[354225643,1740353448192,-2121.71,0.00016438,2]
[354225644,1740353448201,-500.0,0.00016438,2]
[354225645,1740353448211,-3009.5,0.00016438,2]
[354225646,1740353448220,-502.3225525,0.00016438,2]
[354225647,1740353448229,-1193.14,0.00016438,2]
[354225648,1740353448238,-9038.34,0.00016438,2]
[354225649,1740353448249,-649.86,0.00016438,2]
[354225650,1740353448258,-506.9024406,0.00016438,2]
[354225651,1740353448267,-500.0,0.00016438,2]
[354225652,1740353448277,-500.0,0.00016438,2]
[354225653,1740353448287,-500.0,0.00016438,2]
[354225654,1740353448296,-4001.14,0.00016438,2]
[354225655,1740353448305,-500.0,0.00016438,2]
[354225656,1740353448314,-2348.73,0.00016438,2]
[354225657,1740353448323,-1481.92,0.00016438,2]
[354225658,1740353448332,-2467.86,0.00016438,2]
[354225659,1740353448341,-506.54537971,0.00016438,2]
[354225660,1740353448351,-1690.11,0.00016438,2]
[354225661,1740353448360,-500.0,0.00016438,2]
[354225662,1740353448369,-503.84630813,0.00016438,2]
[354225663,1740353448378,-2824.09,0.00016438,2]
[354225664,1740353448387,-502.47274275,0.00016438,2]
[354225665,1740353448397,-517.22,0.00016438,2]
[354225666,1740353448407,-641.2,0.00016438,2]
[354225667,1740353448416,-1352.7,0.00016438,2]
[354225668,1740353448426,-5740.59,0.00016438,2]
[354225669,1740353448436,-500.0,0.00016438,2]
[354225670,1740353448445,-500.0,0.00016438,2]
[354225671,1740353448454,-502.51166852,0.00016438,2]
[354225672,1740353448464,-3769.92,0.00016438,2]
[354225673,1740353448474,-500.0,0.00016438,2]
[354225674,1740353448483,-2651.04,0.00016438,2]
[354225675,1740353448492,-502.49958928,0.00016438,2]
[354225676,1740353448502,-2054.97,0.00016438,2]
[354225677,1740353448511,-500.0,0.00016438,2]
[354225678,1740353448521,-502.55944085,0.00016438,2]
[354225679,1740353448530,-500.0,0.00016438,2]
[354225680,1740353448540,-2474.68,0.00016438,2]
[354225681,1740353448550,-1902.86,0.00016438,2]
[354225682,1740353448560,-500.85935361,0.00016438,2]
[354225683,1740353448571,-500.0,0.00016438,2]
[354225684,1740353448580,-501.14960229,0.00016438,2]
[354225685,1740353448591,-1861.3,0.00016438,2]
[354225686,1740353448601,-501.46770317,0.00016438,2]
[354225687,1740353448611,-765.49,0.00016438,2]
[354225688,1740353448622,-2451.09,0.00016438,2]
[354225689,1740353448633,-501.62299493,0.00016438,2]
[354225690,1740353448643,-500.0,0.00016438,2]
[354225691,1740353448712,-500.0,0.00016438,2]
[354225692,1740353448722,-500.0,0.00016438,2]
[354225693,1740353448731,-2947.25,0.00016438,2]
[354225694,1740353448740,-1148.74,0.00016438,2]
[354225695,1740353448750,-342.33165765,0.00016438,2]
[354225696,1740353448760,-921.14,0.00016438,2]
[354225697,1740353448770,-500.0,0.00016438,2]
[354225698,1740353448780,-2393.08,0.00016438,2]
[354225699,1740353448789,-3399.41,0.00016438,2]
[354225700,1740353448798,-1427.95,0.00016438,2]
[354225701,1740353448807,-500.0,0.00016438,2]
[354225702,1740353448816,-2168.65,0.00016438,2]
[354225703,1740353448825,-3075.28,0.00016438,2]
[354225704,1740353448834,-500.0,0.00016438,2]
[354225705,1740353448843,-500.0,0.00016438,2]
[354225706,1740353448852,-500.0,0.00016438,2]
[354225707,1740353448861,-2865.2,0.00016438,2]
[354225708,1740353448871,-510.58049562,0.00016438,2]
[354225709,1740353448880,-738.31,0.00016438,2]
[354225710,1740353448890,-500.0,0.00016438,2]
[354225711,1740353448899,-500.0,0.00016438,2]
[354225712,1740353448908,-559.85,0.00016438,2]
[354225713,1740353448918,-1270.01,0.00016438,2]
[354225714,1740353448927,-500.0,0.00016438,2]
[354225715,1740353448937,-500.0,0.00016438,2]
[354225716,1740353448946,-500.0,0.00016438,2]
[354225717,1740353448955,-500.0,0.00016438,2]
[354225718,1740353448964,-500.0,0.00016438,2]
[354225719,1740353448976,-500.0,0.00016438,2]
[354225720,1740353448985,-500.0,0.00016438,2]
[354225721,1740353448994,-501.61845612,0.00016438,2]
[354225722,1740353449003,-4248.12,0.00016438,2]
[354225723,1740353449013,-500.0,0.00016438,2]
[354225724,1740353449024,-889.27,0.00016438,2]
[354225725,1740353449033,-500.0,0.00016438,2]
[354225726,1740353449043,-500.0,0.00016438,2]
[354225727,1740353449052,-2925.06,0.00016438,2]
[354225728,1740353449062,-500.0,0.00016438,2]
[354225729,1740353449071,-810.72,0.00016438,2]
[354225730,1740353449080,-500.0,0.00016438,2]
[354225731,1740353449089,-500.0,0.00016438,2]
[354225732,1740353449099,-2205.82,0.00016438,2]
[354225733,1740353449108,-2039.78,0.00016438,2]
[354225734,1740353449117,-978.16,0.00016438,2]
[354225735,1740353449126,-501.0765823,0.00016438,2]
[354225736,1740353449135,-504.05854464,0.00016438,2]
[354225737,1740353449145,-500.0,0.00016438,2]
[354225738,1740353449154,-1056.99,0.00016438,2]
[354225739,1740353449163,-961.55,0.00016438,2]
[354225740,1740353449172,-502.84947574,0.00016438,2]
[354225741,1740353449182,-500.0,0.00016438,2]
[354225742,1740353449191,-500.0,0.00016438,2]
[354225743,1740353449200,-596.35712817,0.00016438,2]
[354225744,1740353449210,-500.0,0.00016438,2]
[354225745,1740353449219,-500.0,0.00016438,2]
[354225746,1740353449228,-1065.57,0.00016438,2]
[354225747,1740353449237,-500.0,0.00016438,2]
[354225748,1740353449246,-3889.56,0.00016438,2]
[354225749,1740353449255,-500.0,0.00016438,7]
[354225750,1740353449265,-1286.75,0.00016438,2]
[354225751,1740353449274,-118.13616542,0.00016438,2]
[354225752,1740353449695,-381.86383458,0.00016438,2]
[354225753,1740353449705,-902.41414368,0.00016438,2]
[354225754,1740353449716,-965.46585632,0.00016438,2]
[354225755,1740353449725,-61.01955368,0.00016438,2]
[354225756,1740353449736,-438.98044632,0.00016438,2]
[354225757,1740353449745,-285.44811082,0.00016438,2]
[354225758,1740353449754,-238.23777401,0.00016438,2]
[354225759,1740353449766,-261.76222599,0.00016438,2]
[354225760,1740353449775,-500.0,0.00016438,2]
[354225761,1740353449784,-500.0,0.00016438,2]
[354225762,1740353449793,-500.0,0.00016438,2]
[354225763,1740353449803,-500.0,0.00016438,2]
[354225764,1740353449811,-502.40492578,0.00016438,2]
[354225765,1740353449822,-3832.85611724,0.00016438,2]
[354225766,1740353449833,-416.54388276,0.00016438,2]
[354225767,1740353449843,-2861.57,0.00016438,2]
[354225768,1740353449853,-503.60353971,0.00016438,2]
[354225769,1740353449864,-1253.92,0.00016438,2]
[354225770,1740353449872,-500.0,0.00016438,2]
[354225771,1740353449882,-500.0,0.00016438,2]
[354225772,1740353449891,-514.67,0.00016438,2]
[354225773,1740353449902,-501.92817626,0.00016438,2]
[354225774,1740353449911,-1535.67,0.00016438,2]
[354225775,1740353449921,-500.0,0.00016438,2]
[354225776,1740353449930,-500.0,0.00016438,2]
[354225777,1740353449939,-500.0,0.00016438,2]
[354225778,1740353449948,-500.0,0.00016438,2]
[354225779,1740353449957,-527.21,0.00016438,2]
[354225780,1740353449967,-1547.08,0.00016438,2]
[354225781,1740353449979,-502.62820688,0.00016438,2]
[354225782,1740353449989,-500.0,0.00016438,2]
[354225783,1740353449998,-535.44786384,0.00016438,2]
[354225784,1740353450007,-500.0,0.00016438,2]
[354225785,1740353450018,-1280.01,0.00016438,2]
[354225786,1740353450029,-511.24537219,0.00016438,2]
[354225787,1740353450039,-1789.28,0.00016438,2]
[354225788,1740353450048,-500.0,0.00016438,2]
[354225789,1740353450058,-2104.09,0.00016438,2]
[354225790,1740353450068,-500.0,0.00016438,2]
[354225791,1740353450078,-3204.29,0.00016438,2]
[354225792,1740353450088,-700.04,0.00016438,2]
[354225793,1740353450097,-500.0,0.00016438,2]
[354225794,1740353450106,-500.0,0.00016438,2]
[354225795,1740353450115,-500.0,0.00016438,2]
[354225796,1740353450124,-504.21112612,0.00016438,2]
[354225797,1740353450133,-500.0,0.00016438,2]
[354225798,1740353450142,-811.44,0.00016438,2]
[354225799,1740353450151,-500.0,0.00016438,2]
[354225800,1740353450160,-3741.91,0.00016438,2]
[354225801,1740353450170,-623.3,0.00016438,2]
[354225802,1740353450179,-500.0,0.00016438,2]
[354225803,1740353450188,-500.0,0.00016438,2]
[354225804,1740353450197,-500.0,0.00016438,2]
[354225805,1740353450206,-849.84,0.00016438,2]
[354225806,1740353450215,-6894.13,0.00016438,2]
[354225807,1740353450225,-1185.61,0.00016438,2]
[354225808,1740353450234,-2904.93,0.00016438,2]
[354225809,1740353450243,-501.42216958,0.00016438,2]
[354225810,1740353450252,-510.39,0.00016438,2]
[354225811,1740353450261,-540.95375646,0.00016438,2]
[354225812,1740353450271,-500.0,0.00016438,2]
[354225813,1740353450281,-500.0,0.00016438,2]
[354225814,1740353450290,-500.0,0.00016438,2]
[354225815,1740353450299,-500.0,0.00016438,2]
[354225816,1740353450308,-500.0,0.00016438,2]
[354225817,1740353450317,-2119.38,0.00016438,2]
[354225818,1740353450326,-641.15,0.00016438,2]
[354225819,1740353450335,-500.0,0.00016438,2]
[354225820,1740353450344,-2112.78,0.00016438,2]
[354225821,1740353450353,-1083.69,0.00016438,2]
[354225822,1740353450362,-1421.77,0.00016438,2]
[354225823,1740353450372,-502.27862366,0.00016438,2]
[354225824,1740353450382,-500.0,0.00016438,2]
[354225825,1740353450391,-500.0,0.00016438,2]
[354225826,1740353450400,-2508.93,0.00016438,2]
[354225827,1740353450409,-1065.63,0.00016438,2]
[354225828,1740353450418,-500.0,0.00016438,2]
[354225829,1740353450427,-527.27745356,0.00016438,2]
[354225830,1740353450436,-499.75,0.00016438,2]
[354225831,1740353450445,-639.0,0.00016439,2]
[354225832,1740353450455,-150.0,0.00016439,2]
[354225833,1740353450464,-569.0,0.00016439,2]
[354225834,1740353450472,-1788.0,0.00016439,2]
[354225835,1740353450482,-539.0,0.00016439,2]
[354225836,1740353450491,-1009.0,0.00016439,2]
[354225837,1740353450500,-150.678,0.00016439,2]
[354225838,1740353450508,-3919.0,0.00016439,2]
[354225839,1740353450518,-640.0,0.00016439,2]
[354225840,1740353450527,-150.0,0.00016439,2]
[354225841,1740353450537,-150.0,0.00016441,2]
[354225842,1740353450546,-150.0,0.00016442,2]
[354225843,1740353450555,-160.17133937,0.00016466,2]
[354225844,1740353450564,-240.25700906,0.00016466,2]
[354225845,1740353450573,-160.17133937,0.00016466,2]
[354225846,1740353450582,-150.0,0.00016467,2]
[354225847,1740353450591,-150.0,0.00016485,2]
[354225848,1740353450600,-150.0,0.00016485,2]
[354225849,1740353450609,-2566.7074404,0.00016508,2]
[354225850,1740353450618,-530.03057096,0.00016518,2]
[354225851,1740353450627,-150.0,0.00016518,2]
[354225852,1740353450636,-500.0,0.00016519,2]
[354225853,1740353450645,-500.0,0.00016519,2]
[354225854,1740353450654,-822.09,0.0001652,2]
[354225855,1740353450663,-500.0,0.0001652,2]
[354225856,1740353450671,-500.0,0.0001652,2]
[354225857,1740353450680,-500.0,0.0001652,2]
[354225858,1740353450689,-500.0,0.0001652,2]
[354225859,1740353450698,-500.0,0.0001652,2]
[354225860,1740353450708,-740.11,0.0001652,2]
[354225861,1740353450717,-554.09706904,0.0001652,2]
[354225862,1740353450726,-950.11,0.0001652,2]
[354225863,1740353450735,-500.0,0.0001652,2]
[354225864,1740353450743,-577.44748462,0.0001652,2]
[354225865,1740353450752,-500.0,0.0001652,2]
[354225866,1740353450761,-500.0,0.0001652,2]
[354225867,1740353450770,-500.0,0.0001652,2]
[354225868,1740353450780,-500.0,0.0001652,2]
[354225869,1740353450789,-755.07,0.0001652,2]
[354225870,1740353450799,-500.0,0.0001652,2]
[354225871,1740353450807,-500.0,0.0001652,2]
[354225872,1740353450817,-500.0,0.0001652,2]
[354225873,1740353450826,-500.0,0.0001652,2]
[354225874,1740353450835,-500.0,0.0001652,2]
[354225875,1740353450844,-500.0,0.0001652,2]
[354225876,1740353450852,-500.0,0.0001652,2]
[354225877,1740353450861,-500.0,0.0001652,2]
[354225878,1740353450871,-944.75,0.0001652,2]
[354225879,1740353450880,-500.0,0.0001652,2]
[354225880,1740353450889,-500.0,0.0001652,2]
[354225881,1740353450898,-500.0,0.0001652,2]
[354225882,1740353450907,-500.0,0.0001652,2]
[354225883,1740353450916,-500.0,0.0001652,2]
[354225884,1740353450925,-500.0,0.0001652,2]
[354225885,1740353450935,-500.0,0.0001652,2]
[354225886,1740353450944,-500.0,0.0001652,2]
[354225887,1740353450953,-626.53,0.0001652,2]
[354225888,1740353450962,-684.82,0.0001652,2]
[354225889,1740353450971,-500.0,0.0001652,2]
[354225890,1740353450984,-500.0,0.0001652,2]
[354225891,1740353450993,-500.0,0.0001652,2]
[354225892,1740353451002,-500.0,0.0001652,2]
[354225893,1740353451012,-500.0,0.0001652,2]
[354225894,1740353451021,-500.0,0.0001652,2]
[354225895,1740353451032,-500.0,0.0001652,2]
[354225896,1740353451041,-500.0,0.0001652,2]
[354225897,1740353451051,-817.57,0.0001652,2]
[354225898,1740353451060,-500.0,0.0001652,2]
[354225899,1740353451069,-500.0,0.0001652,2]
[354225900,1740353451078,-585.52,0.0001652,2]
[354225901,1740353451087,-511.2,0.0001652,2]
[354225902,1740353451096,-806.31,0.0001652,2]
[354225903,1740353451104,-500.0,0.0001652,2]
[354225904,1740353451113,-500.0,0.0001652,2]
[354225905,1740353451122,-500.0,0.0001652,2]
[354225906,1740353451131,-554.64,0.0001652,2]
[354225907,1740353451140,-500.0,0.0001652,2]
[354225908,1740353451149,-500.0,0.0001652,2]
[354225909,1740353451158,-640.95,0.0001652,2]
[354225910,1740353451167,-500.0,0.0001652,2]
[354225911,1740353451176,-500.0,0.0001652,2]
[354225912,1740353451185,-500.0,0.0001652,2]
[354225913,1740353451194,-500.0,0.0001652,2]
[354225914,1740353451203,-730.72,0.0001652,2]
[354225915,1740353451212,-500.0,0.0001652,2]
[354225916,1740353451221,-500.0,0.0001652,2]
[354225917,1740353451230,-500.0,0.0001652,2]
[354225918,1740353451239,-500.0,0.0001652,2]
[354225919,1740353451248,-516.69,0.0001652,2]
[354225920,1740353451257,-500.0,0.0001652,2]
[354225921,1740353451266,-500.0,0.0001652,2]
[354225922,1740353451279,-500.0,0.0001652,2]
[354225923,1740353451288,-500.0,0.0001652,2]
[354225924,1740353451298,-500.0,0.0001652,2]
[354225925,1740353451307,-500.0,0.0001652,2]
[354225926,1740353451316,-312.82642469,0.0001652,2]
[354225927,1740353451325,-500.0,0.0001652,2]
[354225928,1740353451335,-500.0,0.0001652,2]
[354225929,1740353451344,-500.0,0.0001652,2]
[354225930,1740353451354,-500.0,0.0001652,2]
[354225931,1740353451363,-500.0,0.0001652,2]
[354225932,1740353451372,-500.0,0.0001652,2]
[354225933,1740353451381,-500.0,0.0001652,2]
[354225934,1740353451390,-520.84,0.0001652,2]
[354225935,1740353451399,-500.0,0.0001652,2]
[354225936,1740353451409,-500.0,0.0001652,2]
[354225937,1740353451418,-500.0,0.0001652,2]
[354225938,1740353451426,-500.0,0.0001652,2]
[354225939,1740353451435,-500.0,0.0001652,2]
[354225940,1740353451444,-500.0,0.0001652,2]
[354225941,1740353451453,-500.0,0.0001652,2]
[354225942,1740353451462,-552.39,0.0001652,2]
[354225943,1740353451471,-500.0,0.0001652,2]
[354225944,1740353451480,-500.0,0.0001652,2]
[354225945,1740353451489,-528.39,0.0001652,2]
[354225946,1740353451498,-500.0,0.0001652,2]
[354225947,1740353451507,-500.0,0.0001652,2]
[354225948,1740353451516,-860.18,0.0001652,2]
[354225949,1740353451528,-500.0,0.0001652,2]
[354225950,1740353451537,-500.0,0.0001652,2]
[354225951,1740353451546,-500.0,0.0001652,2]
[354225952,1740353451555,-500.0,0.0001652,2]
[354225953,1740353451564,-764.47,0.0001652,2]